fUSD/lending_fUSD_20250106
["ID","MTS","AMOUNT","RATE_DAILY","PERIOD"]
[347851536,1736158246837,-500.0,0.00010947,2]
[347851537,1736158246846,-500.0,0.00010947,2]
[347851538,1736158246857,-500.0,0.00010947,2]
[347851539,1736158246866,-500.0,0.00010947,2]
[347851540,1736158246876,-760.6,0.00010947,2]
[347851541,1736158246886,-500.0,0.00010947,2]
[347851542,1736158246895,-500.0,0.00010947,2]
[347851543,1736158246904,-500.0,0.00010947,2]
[347851544,1736158246914,-500.0,0.00010947,2]
[347851545,1736158246923,-500.0,0.00010947,2]
[347851546,1736158246932,-500.0,0.00010947,2]
[347851547,1736158246941,-500.0,0.00010947,2]
[347851548,1736158246951,-1461.23,0.00010947,2]
[347851549,1736158246960,-500.0,0.00010947,2]
[347851550,1736158246969,-500.0,0.00010947,2]
[347851551,1736158246978,-500.0,0.00010947,2]
[347851552,1736158246987,-500.0,0.00010947,2]
[347851553,1736158246996,-1219.76,0.00010947,2]
[347851554,1736158247005,-151.79224632,0.00010973,2]
[347851555,1736158247014,-151.79027839,0.00010973,2]
[347851556,1736158247023,-150.7936131,0.00010973,2]
[347851557,1736158247032,-151.7922475,0.00010973,2]
[347851558,1736158247041,-151.7922475,0.00010973,2]
[347851559,1736158247050,-156.78541352,0.00010973,2]
[347851560,1736158247059,-501.51540253,0.00010973,2]
[347851561,1736158247068,-151.79224632,0.00010973,2]
[347851562,1736158247078,-151.79224632,0.00010973,2]
[347851563,1736158247087,-500.0,0.00010973,2]
[347851564,1736158247097,-151.7922475,0.00010973,2]
[347851565,1736158247106,-151.79224632,0.00010973,2]
[347851566,1736158247116,-302.366,0.00010986,2]
[347851567,1736158247125,-6074.077,0.00010986,2]
[347851568,1736158247134,-150.0,0.00010986,2]
[347851569,1736158247143,-150.0,0.00010986,2]
[347851570,1736158247152,-500.0,0.00010989,2]
[347851571,1736158247162,-500.0,0.00010989,2]
[347851572,1736158247171,-100000.0,0.0001099,2]
[347851573,1736158247180,-500.0,0.00010995,2]
[347851574,1736158247189,-439.12,0.00010995,2]
[347851575,1736158247199,-500.0,0.00010995,2]
[347851576,1736158247208,-500.0,0.00010995,2]
[347851577,1736158247217,-500.0,0.00010995,2]
[347851578,1736158247226,-500.0,0.00010995,2]
[347851579,1736158247235,-500.0,0.00010995,2]
[347851580,1736158247244,-349.54,0.00010995,2]
[347851581,1736158247253,-500.0,0.00010995,2]
[347851582,1736158247262,-500.0,0.00010995,2]
[347851583,1736158247271,-500.0,0.00010995,2]
[347851584,1736158247281,-500.0,0.00010995,2]
[347851585,1736158247290,-494.99658422,0.00010995,2]
[347851586,1736158247299,-201.9,0.00010995,2]
[347851587,1736158247308,-500.0,0.00010995,2]
[347851588,1736158247317,-573.9668206,0.00010995,2]
[347851589,1736158247326,-383.34338936,0.00010995,2]
[347851590,1736158247496,-500.0,0.00010995,2]
[347851591,1736158247505,-508.62251411,0.00010995,2]
[347851592,1736158247515,-510.17410041,0.00010995,2]
[347851593,1736158247524,-500.0,0.00010995,2]
[347851594,1736158247534,-500.0,0.00010995,2]
[347851595,1736158247543,-500.0,0.00010995,2]
[347851596,1736158247552,-507.33251844,0.00010995,2]
[347851597,1736158247561,-580.16,0.00010995,2]
[347851598,1736158247571,-500.0,0.00010995,2]
[347851599,1736158247580,-500.0,0.00010995,2]
[347851600,1736158247589,-506.38761539,0.00010995,2]
[347851601,1736158247598,-500.0,0.00010995,2]
[347851602,1736158247607,-500.0,0.00010995,2]
[347851603,1736158247617,-500.0,0.00010995,2]
[347851604,1736158247626,-313.83786466,0.00010995,2]
[347851605,1736158247635,-500.0,0.00010995,2]
[347851606,1736158247645,-500.0,0.00010995,2]
[347851607,1736158247654,-502.00703965,0.00010995,2]
[347851608,1736158247663,-626.51119054,0.00010995,2]
[347851609,1736158247672,-500.0,0.00010995,2]
[347851610,1736158247682,-330.03027492,0.00010995,2]
[347851611,1736158247691,-752.18,0.00010995,2]
[347851612,1736158247701,-500.0,0.00010995,2]
[347851613,1736158247710,-500.0,0.00010995,2]
[347851614,1736158247719,-500.0,0.00010995,2]
[347851615,1736158247729,-500.0,0.00010995,2]
[347851616,1736158247738,-500.0,0.00010995,2]
[347851617,1736158247749,-546.96032371,0.00010995,2]
[347851618,1736158247758,-500.0,0.00010995,2]
[347851619,1736158247767,-331.79585934,0.00010995,2]
[347851620,1736158247776,-500.0,0.00010995,2]
[347851621,1736158247786,-500.0,0.00010995,2]
[347851622,1736158247795,-501.22740516,0.00010995,2]
[347851623,1736158247804,-500.0,0.00010995,2]
[347851624,1736158247813,-500.0,0.00010995,2]
[347851625,1736158247822,-500.0,0.00010995,2]
[347851626,1736158247831,-200.0,0.00010995,2]
[347851627,1736158247840,-500.0,0.00010995,2]
[347851628,1736158247849,-500.0,0.00010995,2]
[347851629,1736158247858,-500.0,0.00010995,2]
[347851630,1736158247868,-500.93715457,0.00010995,2]
[347851631,1736158247878,-500.0,0.00010995,2]
[347851632,1736158247889,-7689.2382307,0.00010995,2]
[347851633,1736158247898,-1082.0,0.00010996,2]
[347851634,1736158247908,-500.15393638,0.00010996,2]
[347851635,1736158247917,-500.30312519,0.00010996,2]
[347851636,1736158247927,-500.0,0.00010996,2]
[347851637,1736158247936,-898.65,0.00010996,2]
[347851638,1736158247945,-2698.81,0.00010996,2]
[347851639,1736158247955,-1415.51,0.00010996,2]
[347851640,1736158247965,-5221.63,0.00010996,2]
[347851641,1736158247974,-4412.39,0.00010996,2]
[347851642,1736158247983,-500.0,0.00010996,2]
[347851643,1736158247992,-1709.89,0.00010996,2]
[347851644,1736158248005,-3104.03,0.00010996,2]
[347851645,1736158248015,-500.0,0.00010996,2]
[347851646,1736158248025,-500.0,0.00010996,2]
[347851647,1736158248034,-1641.68,0.00010996,2]
[347851648,1736158248044,-507.95,0.00010996,2]
[347851649,1736158248054,-762.32,0.00010996,2]
[347851650,1736158248063,-500.0,0.00010996,2]
[347851651,1736158248073,-581.0,0.00010996,2]
[347851652,1736158248083,-1580.43,0.00010996,2]
[347851653,1736158248093,-1151.79,0.00010996,2]
[347851654,1736158248102,-2254.26,0.00010996,2]
[347851655,1736158248112,-6538.55,0.00010996,2]
[347851656,1736158248123,-1193.87,0.00010996,2]
[347851657,1736158248132,-1925.56,0.00010996,2]
[347851658,1736158248143,-500.0,0.00010996,2]
[347851659,1736158248153,-1268.75,0.00010996,2]
[347851660,1736158248162,-500.0,0.00010996,2]
[347851661,1736158248172,-3390.4,0.00010996,2]
[347851662,1736158248182,-500.0,0.00010996,2]
[347851663,1736158248192,-1446.94,0.00010996,2]
[347851664,1736158248202,-2930.99,0.00010996,2]
[347851665,1736158248213,-2041.39,0.00010996,2]
[347851666,1736158248223,-500.0,0.00010996,2]
[347851667,1736158248233,-538.22,0.00010996,2]
[347851668,1736158248242,-1092.86,0.00010996,2]
[347851669,1736158248252,-925.05,0.00010996,2]
[347851670,1736158248261,-713.23,0.00010996,2]
[347851671,1736158248271,-857.12,0.00010996,2]
[347851672,1736158248281,-500.0,0.00010996,2]
[347851673,1736158248291,-1262.12,0.00010996,2]
[347851674,1736158248301,-2448.18,0.00010996,2]
[347851675,1736158248312,-500.0,0.00010996,2]
[347851676,1736158248321,-500.0,0.00010996,2]
[347851677,1736158248331,-900.12,0.00010996,2]
[347851678,1736158248340,-1372.85,0.00010996,2]
[347851679,1736158248350,-979.52,0.00010996,2]
[347851680,1736158248360,-1443.45,0.00010996,2]
[347851681,1736158248369,-1000.0,0.00010997,2]
[347851682,1736158248382,-598.45,0.00010997,2]
[347851683,1736158248398,-500.0,0.00010997,2]
[347851684,1736158248407,-1758.42,0.00010997,2]
[347851685,1736158248418,-1385.44,0.00010997,2]
[347851686,1736158248428,-161.73,0.00010999,2]
[347851687,1736158248438,-2000.0,0.00010999,2]
[347851688,1736158248448,-200.0,0.00010999,2]
[347851689,1736158248459,-500.0,0.00010999,2]
[347851690,1736158248469,-200.0,0.00010999,2]
[347851691,1736158248479,-1773.09,0.00010999,2]
[347851692,1736158248489,-3000.0,0.00010999,2]
[347851693,1736158248499,-175.14846395,0.00010999,2]
[347851694,1736158248508,-7508.79194613,0.00011,2]
[347851695,1736158248519,-3239405.47803094,0.00011,3]
[347851696,1736158249185,-500.0,0.00010399,2]
[347851697,1736158249195,-505.24749686,0.00010399,2]
[347851698,1736158249204,-4367.6628453,0.00011,3]
[347851699,1736158249222,-2295.0,0.00011,3]
[347851700,1736158249260,-482.145,0.00011,3]
[347851701,1736158249272,-2706.2398,0.00011,3]
[347851702,1736158249283,-2828.55003,0.00011,3]
[347851703,1736158249301,-3073.13814854,0.00011,3]
[347851704,1736158249312,-753.69950238,0.00011,3]
[347851705,1736158249625,-366.43987977,0.00010399,2]
[347851706,1736158249637,-136.43034416,0.00010399,2]
[347851707,1736158249646,-159.10043696,0.000109,2]
[347851708,1736158249658,-4103.45922706,0.000109,2]
[347851709,1736158249668,-849.76777294,0.00010999,2]
[347851710,1736158249679,-243.64222706,0.00010999,2]
[347851711,1736158249688,-8626.37524687,0.00011,3]
[347851712,1736158249702,-22429.0,0.00011,3]
[347851713,1736158249719,-1553.75581049,0.00011,3]
[347851714,1736158249926,-155.76501918,0.000109,2]
[347851715,1736158249935,-4805.43758082,0.00011,3]
[347851716,1736158249950,-59412.00461424,0.00011,3]
[347851717,1736158249963,-476.61099428,0.00011,3]
[347851718,1736158249974,-27889.71668184,0.00011,3]
[347851719,1736158249985,-400.81906905,0.00011,3]
[347851720,1736158249996,-3808.65381058,0.00011,3]
[347851721,1736158250007,-964.96,0.00011,3]
[347851722,1736158250018,-57375.34,0.00011,3]
[347851723,1736158250029,-496.5745365,0.00011,3]
[347851726,1736158618091,456.0,0.00011,30]
[347851733,1736159206892,453.37,8.219e-05,2]
[347851783,1736159432291,-354.67,9.463e-05,2]
[347851784,1736159432301,-250.0,9.532e-05,2]
[347851785,1736159432310,-226.862,9.606e-05,2]
[347851786,1736159432381,-773.138,9.606e-05,2]
[347851787,1736159432391,-216.55873674,9.857e-05,2]
[347851788,1736159432403,-33.44126326,9.857e-05,2]
[347851789,1736159432413,-1511.26003295,9.877e-05,2]
[347851790,1736159432472,-288.70212696,9.877e-05,2]
[347851791,1736159432484,-483.04,9.877e-05,2]
[347851792,1736159432499,-1727.4936,9.877e-05,2]
[347851793,1736159432514,-1209.10423545,9.877e-05,2]
[347851794,1736159432601,-803.55000464,9.877e-05,2]
[347851795,1736159432611,-300.0,9.887e-05,2]
[347851796,1736159432621,-150.0,9.888e-05,2]
[347851797,1736159432631,-150.0,9.888e-05,2]
[347851798,1736159432641,-8280.64548976,9.888e-05,2]
[347851799,1736159432650,-150.0,9.899e-05,2]
[347851800,1736159432660,-265.4728,9.9e-05,2]
[347851801,1736159432669,-686.0731443,9.9e-05,2]
[347852354,1736159438375,-313.9268557,9.9e-05,2]
[347852355,1736159438384,-500.0,9.9e-05,2]
[347852357,1736159438394,-1582.53224774,9.9e-05,2]
[347852359,1736159438407,-2283.46865226,9.9e-05,2]
[347852383,1736159438630,-999.999999,9.9e-05,7]
[347852385,1736159438641,-703.97,9.953e-05,2]
[347852387,1736159438651,-274.03,9.979e-05,2]
[347852389,1736159438661,-500.0,9.999e-05,2]
[347852391,1736159438671,-1590.57,9.999e-05,2]
[347852393,1736159438680,-821.99,9.999e-05,2]
[347852395,1736159438690,-500.0,9.999e-05,2]
[347852397,1736159438699,-1819.68,9.999e-05,2]
[347852399,1736159438708,-500.0,9.999e-05,2]
[347852401,1736159438717,-606.76,9.999e-05,2]
[347852403,1736159438726,-500.0,9.999e-05,2]
[347852405,1736159438735,-500.0,9.999e-05,2]
[347852407,1736159438745,-926.33,9.999e-05,2]
[347852409,1736159438755,-500.0,9.999e-05,2]
[347852411,1736159438765,-500.0,9.999e-05,2]
[347852414,1736159438775,-500.0,9.999e-05,2]
[347852415,1736159438784,-500.0,9.999e-05,2]
[347852418,1736159438794,-500.0,9.999e-05,2]
[347852420,1736159438803,-500.0,9.999e-05,2]
[347852421,1736159438812,-749.66,9.999e-05,2]
[347852424,1736159438821,-882.61,9.999e-05,2]
[347852425,1736159438830,-500.0,9.999e-05,2]
[347852427,1736159438840,-500.0,9.999e-05,2]
[347852429,1736159438850,-500.0,9.999e-05,2]
[347852431,1736159438859,-500.0,9.999e-05,2]
[347852434,1736159438868,-603.61248577,9.999e-05,2]
[347852436,1736159438878,-500.0,9.999e-05,2]
[347852438,1736159438887,-500.0,9.999e-05,2]
[347852440,1736159438897,-500.24417805,0.0001,2]
[347852442,1736159438907,-204041.13107043,0.0001,2]
[347852444,1736159438915,-36588.01524035,0.0001,2]
[347852445,1736159438925,-3055.2678,0.00010173,2]
[347852447,1736159438934,-180.99,0.00010192,2]
[347852450,1736159438944,-500.0,0.00010271,2]
[347852452,1736159438954,-258.56,0.00010271,2]
[347852454,1736159438963,-500.0,0.00010271,2]
[347852455,1736159438972,-500.0,0.00010271,2]
[347852458,1736159438982,-500.0,0.00010271,2]
[347852460,1736159438991,-500.0,0.00010271,2]
[347852462,1736159439001,-500.0,0.00010271,2]
[347852464,1736159439010,-500.0,0.00010271,2]
[347852466,1736159439020,-515.95,0.00010271,2]
[347852467,1736159439030,-629.38,0.00010271,2]
[347852468,1736159439040,-500.0,0.00010271,2]
[347852470,1736159439050,-558.72,0.00010271,2]
[347852472,1736159439059,-500.0,0.00010271,2]
[347852474,1736159439069,-500.0,0.00010271,2]
[347852476,1736159439078,-500.0,0.00010271,2]
[347852478,1736159439088,-500.0,0.00010271,2]
[347852480,1736159439098,-372.65639797,0.00010271,2]
[347852481,1736159439107,-500.0,0.00010271,2]
[347852482,1736159439116,-500.0,0.00010271,2]
[347852483,1736159439125,-500.0,0.00010271,2]
[347852484,1736159439135,-500.0,0.00010271,2]
[347852485,1736159439144,-500.0,0.00010271,2]
[347852486,1736159439153,-798.48,0.00010271,2]
[347852487,1736159439165,-603.29,0.00010271,2]
[347852488,1736159439174,-709.4,0.00010271,2]
[347852489,1736159439183,-800.5,0.00010271,2]
[347852490,1736159439192,-572.74185475,0.00010271,2]
[347852491,1736159439201,-500.0,0.00010271,2]
[347852492,1736159439210,-500.0,0.00010271,2]
[347852493,1736159439219,-506.91964728,0.00010271,2]
[347852494,1736159439229,-505.26483855,0.00010271,2]
[347852495,1736159439238,-500.0,0.00010271,2]
[347852496,1736159439247,-500.0,0.00010271,2]
[347852497,1736159439256,-500.0,0.00010271,2]
[347852498,1736159439265,-500.0,0.00010271,2]
[347852499,1736159439274,-500.0,0.00010271,2]
[347852500,1736159439286,-500.0,0.00010271,2]
[347852501,1736159439296,-500.0,0.00010271,2]
[347852502,1736159439305,-500.0,0.00010271,2]
[347852503,1736159439314,-500.0,0.00010271,2]
[347852504,1736159439324,-500.0,0.00010271,2]
[347852505,1736159439333,-500.0,0.00010271,2]
[347852506,1736159439343,-500.0,0.00010271,2]
[347852507,1736159439352,-500.0,0.00010271,2]
[347852508,1736159439362,-500.0,0.00010271,2]
[347852510,1736159439373,-500.0,0.00010271,2]
[347852512,1736159439383,-1830.27,0.00010271,2]
[347852514,1736159439392,-500.0,0.00010271,2]
[347852516,1736159439401,-500.0,0.00010271,2]
[347852518,1736159439411,-500.0,0.00010271,2]
[347852520,1736159439421,-3280.87,0.00010271,2]
[347852522,1736159439430,-686.93,0.00010271,2]
[347852524,1736159439440,-500.0,0.00010271,2]
[347852526,1736159439450,-500.0,0.00010271,2]
[347852528,1736159439460,-500.0,0.00010271,2]
[347852531,1736159439471,-500.0,0.00010271,2]
[347852532,1736159439480,-500.0,0.00010271,2]
[347852535,1736159439490,-500.0,0.00010271,2]
[347852537,1736159439500,-500.0,0.00010271,2]
[347852539,1736159439510,-500.0,0.00010271,2]
[347852541,1736159439520,-500.0,0.00010271,2]
[347852543,1736159439529,-1691.38,0.00010271,2]
[347852545,1736159439538,-810.64,0.00010271,2]
[347852546,1736159439548,-1172.62,0.00010271,2]
[347852548,1736159439557,-194.02354629,0.00010272,2]
[347852550,1736159439567,-500.58876615,0.00010272,2]
[347852552,1736159439576,-275.0191708,0.00010272,2]
[347852554,1736159439585,-500.9536249,0.00010272,2]
[347852556,1736159439594,-500.68456381,0.00010272,2]
[347852558,1736159439604,-500.0,0.00010272,2]
[347852561,1736159439614,-500.0,0.00010272,2]
[347852562,1736159439623,-500.10850106,0.00010272,2]
[347852565,1736159439633,-501.20393325,0.00010272,2]
[347852566,1736159439642,-500.50021399,0.00010272,2]
[347852568,1736159439651,-500.49162605,0.00010272,2]
[347852570,1736159439660,-500.71657288,0.00010272,2]
[347852572,1736159439670,-500.43424159,0.00010272,2]
[347852574,1736159439679,-500.38950699,0.00010272,2]
[347852576,1736159439689,-500.13477095,0.00010272,2]
[347852578,1736159439698,-500.65935572,0.00010272,2]
[347852580,1736159439707,-500.3785124,0.00010272,2]
[347852582,1736159439717,-500.24017173,0.00010272,2]
[347852584,1736159439726,-397.5282202,0.00010272,2]
[347852586,1736159439735,-500.58616409,0.00010272,2]
[347852588,1736159439744,-500.43225279,0.00010272,2]
[347852590,1736159439754,-500.63506432,0.00010272,2]
[347852592,1736159439763,-500.53385576,0.00010272,2]
[347852593,1736159439772,-500.56374959,0.00010272,2]
[347852594,1736159439781,-500.91049735,0.00010272,2]
[347852595,1736159439790,-500.0,0.00010272,2]
[347852596,1736159439799,-386.67342082,0.00010272,2]
[347852597,1736159439809,-500.14505605,0.00010272,2]
[347852598,1736159439818,-200.74229359,0.00010272,2]
[347852599,1736159439828,-501.18584784,0.00010272,2]
[347852600,1736159439837,-500.16680285,0.00010272,2]
[347852601,1736159439847,-300.52286915,0.00010272,2]
[347852602,1736159439857,-500.49409309,0.00010272,2]
[347852603,1736159439867,-500.0,0.00010272,2]
[347852604,1736159439876,-500.64202309,0.00010272,2]
[347852605,1736159439885,-502.73523432,0.00010272,2]
[347852606,1736159439895,-500.0,0.00010272,2]
[347852607,1736159439905,-500.63039802,0.00010272,2]
[347852608,1736159439915,-500.88764755,0.00010272,2]
[347852609,1736159439924,-500.86620053,0.00010272,2]
[347852610,1736159439934,-501.19377836,0.00010272,2]
[347852611,1736159439943,-156.68560212,0.00010272,2]
[347852612,1736159439952,-500.0,0.00010272,2]
[347852613,1736159439962,-500.66813291,0.00010272,2]
[347852614,1736159439974,-500.24940782,0.00010272,2]
[347852615,1736159439983,-500.41380996,0.00010272,2]
[347852616,1736159439993,-500.3271352,0.00010272,2]
[347852617,1736159440003,-500.66082155,0.00010272,2]
[347852618,1736159440012,-500.68298453,0.00010272,2]
[347852619,1736159440022,-500.66779686,0.00010272,2]
[347852620,1736159440032,-500.48169029,0.00010272,2]
[347852621,1736159440041,-500.33062916,0.00010272,2]
[347852622,1736159440051,-500.20219679,0.00010272,2]
[347852623,1736159440060,-500.19582289,0.00010272,2]
[347852624,1736159440070,-500.47349783,0.00010272,2]
[347852625,1736159440080,-500.0,0.00010272,2]
[347852626,1736159440090,-1000.0,0.00010272,2]
[347852627,1736159440100,-500.38666215,0.00010272,2]
[347852628,1736159440110,-500.5591255,0.00010272,2]
[347852629,1736159440120,-1590.57,0.00010273,2]
[347852630,1736159440129,-821.99,0.00010273,2]
[347852631,1736159440139,-500.0,0.00010273,2]
[347852632,1736159440148,-1819.68,0.00010273,2]
[347852633,1736159440159,-500.0,0.00010273,2]
[347852634,1736159440168,-500.0,0.00010273,2]
[347852635,1736159440178,-500.0,0.00010273,2]
[347852636,1736159440187,-926.33,0.00010273,2]
[347852637,1736159440197,-500.0,0.00010273,2]
[347852638,1736159440206,-500.0,0.00010273,2]
[347852639,1736159440216,-500.0,0.00010273,2]
[347852640,1736159440225,-500.0,0.00010273,2]
[347852641,1736159440235,-500.0,0.00010273,2]
[347852642,1736159440244,-500.0,0.00010273,2]
[347852643,1736159440253,-882.61,0.00010273,2]
[347852644,1736159440263,-749.66,0.00010273,2]
[347852645,1736159440272,-465.29271193,0.00010273,2]
[347852646,1736159440285,-500.0,0.00010273,2]
[347852647,1736159440294,-500.0,0.00010273,2]
[347852648,1736159440304,-500.0,0.00010273,2]
[347852649,1736159440313,-500.0,0.00010273,2]
[347852650,1736159440326,-379.6317,0.00010299,2]
[347852651,1736159440335,-500.0,0.00010399,2]
[347852652,1736159440344,-500.0,0.00010399,2]
[347852653,1736159440354,-500.0,0.00010399,2]
[347852654,1736159440367,-503.34386798,0.00010399,2]
[347852655,1736159440377,-500.0,0.00010399,2]
[347852656,1736159440386,-500.0,0.00010399,2]
[347852657,1736159440395,-500.0,0.00010399,2]
[347852658,1736159440405,-500.0,0.00010399,2]
[347852659,1736159440414,-278.76,0.00010399,2]
[347852660,1736159440424,-1214.7,0.00010399,2]
[347852661,1736159440434,-2031.38,0.00010399,2]
[347852662,1736159440443,-1289.59,0.00010399,2]
[347852663,1736159440453,-3426.06,0.00010399,2]
[347852664,1736159440463,-1446.94,0.00010399,2]
[347852665,1736159440472,-2070.06,0.00010399,2]
[347852666,1736159440482,-1109.26,0.00010399,2]
[347852667,1736159440490,-877.95,0.00010399,2]
[347852668,1736159440499,-500.0,0.00010399,2]
[347852669,1736159440509,-1464.28,0.00010399,2]
[347852670,1736159440519,-2554.62,0.00010399,2]
[347852671,1736159440529,-1393.68,0.00010399,2]
[347852672,1736159440538,-507.541,0.0001045,2]
[347852673,1736159440548,-453.37,0.0001046,2]
[347852674,1736159440557,-436.55583428,0.00010543,2]
[347852675,1736159440567,-500.0,0.00010544,2]
[347852676,1736159440576,-500.0,0.00010544,2]
[347852677,1736159440586,-500.0,0.00010544,2]
[347852678,1736159440595,-500.0,0.00010544,2]
[347852679,1736159440604,-500.0,0.00010544,2]
[347852680,1736159440614,-500.0,0.00010544,2]
[347852681,1736159440624,-500.0,0.00010544,2]
[347852682,1736159440633,-500.0,0.00010544,2]
[347852683,1736159440643,-500.0,0.00010544,2]
[347852684,1736159440652,-500.0,0.00010544,2]
[347852685,1736159440662,-500.0,0.00010544,2]
[347852686,1736159440672,-500.0,0.00010544,2]
[347852687,1736159440682,-500.0,0.00010544,2]
[347852688,1736159440691,-500.0,0.00010544,2]
[347852690,1736159440701,-500.0,0.00010544,2]
[347852692,1736159440710,-500.0,0.00010544,2]
[347852694,1736159440719,-500.0,0.00010544,2]
[347852696,1736159440728,-500.0,0.00010544,2]
[347852698,1736159440738,-500.0,0.00010544,2]
[347852699,1736159440747,-500.0,0.00010544,2]
[347852700,1736159440757,-500.0,0.00010544,2]
[347852701,1736159440767,-500.0,0.00010544,2]
[347852702,1736159440776,-488.36753171,0.00010544,2]
[347852703,1736159440785,-595.77,0.00010544,2]
[347852704,1736159440794,-500.0,0.00010544,2]
[347852705,1736159440804,-500.0,0.00010544,2]
[347852706,1736159440814,-501.70973462,0.00010544,2]
[347852707,1736159440823,-500.58510681,0.00010544,2]
[347852708,1736159440833,-500.0,0.00010544,2]
[347852709,1736159440843,-500.88637861,0.00010544,2]
[347852710,1736159440855,-500.0,0.00010544,2]
[347852711,1736159440864,-500.38248434,0.00010544,2]
[347852712,1736159440875,-500.0,0.00010544,2]
[347852713,1736159440885,-500.0,0.00010544,2]
[347852714,1736159440894,-500.0,0.00010544,2]
[347852715,1736159440903,-500.0,0.00010544,2]
[347852716,1736159440913,-500.0,0.00010544,2]
[347852717,1736159440922,-500.0,0.00010544,2]
[347852718,1736159440931,-500.0,0.00010544,2]
[347852719,1736159440940,-500.0,0.00010544,2]
[347852720,1736159440950,-501.01498938,0.00010544,2]
[347852721,1736159440959,-500.0,0.00010544,2]
[347852722,1736159440969,-500.0,0.00010544,2]
[347852723,1736159440978,-500.0,0.00010544,2]
[347852724,1736159440988,-500.0,0.00010544,2]
[347852725,1736159440997,-500.0,0.00010544,2]
[347852726,1736159441007,-500.0,0.00010544,2]
[347852727,1736159441016,-502.04294904,0.00010544,2]
[347852728,1736159441025,-500.0,0.00010544,2]
[347852729,1736159441035,-500.0,0.00010544,2]
[347852730,1736159441045,-499.18197178,0.00010544,2]
[347852731,1736159441055,-500.0,0.00010544,2]
[347852732,1736159441064,-500.62189997,0.00010544,2]
[347852733,1736159441073,-500.0,0.00010544,2]
[347852734,1736159441083,-532.35,0.00010544,2]
[347852735,1736159441092,-500.0,0.00010544,2]
[347852736,1736159441102,-500.0,0.00010544,2]
[347852737,1736159441111,-500.73460745,0.00010544,2]
[347852738,1736159441120,-500.0,0.00010544,2]
[347852739,1736159441130,-500.0,0.00010544,2]
[347852740,1736159441139,-501.40447644,0.00010544,2]
[347852741,1736159441149,-500.0,0.00010544,2]
[347852742,1736159441158,-500.0,0.00010544,2]
[347852743,1736159441168,-500.0,0.00010544,2]
[347852744,1736159441178,-500.0,0.00010544,2]
[347852745,1736159441187,-500.0,0.00010544,2]
[347852746,1736159441197,-500.0,0.00010544,2]
[347852747,1736159441207,-500.0,0.00010544,2]
[347852748,1736159441216,-575.29781593,0.00010544,2]
[347852749,1736159441225,-500.0,0.00010544,2]
[347852750,1736159441234,-500.0,0.00010544,2]
[347852751,1736159441243,-500.90465725,0.00010544,2]
[347852752,1736159441252,-500.0,0.00010544,2]
[347852753,1736159441262,-500.0,0.00010544,2]
[347852754,1736159441271,-501.17877521,0.00010544,2]
[347852755,1736159441283,-501.46425836,0.00010544,2]
[347852756,1736159441295,-501.63872328,0.00010544,2]
[347852757,1736159441305,-500.0,0.00010544,2]
[347852758,1736159441315,-500.0,0.00010544,2]
[347852759,1736159441324,-607.41,0.00010544,2]
[347852760,1736159441334,-501.32859064,0.00010544,2]
[347852761,1736159441344,-501.2773116,0.00010544,2]
[347852762,1736159441355,-500.0,0.00010544,2]
[347852763,1736159441364,-500.51172738,0.00010544,2]
[347852764,1736159441374,-500.0,0.00010544,2]